Cogmind - Beta 12 --- EXPLORER MODE // 2023.11.17 @ 12:19:57 Player: wadebtw Result: Destroyed by G-73 Enforcer with Phase Gun Performance ------------- Evolutions (8) 4000 Regions Visited (15) 3000 Robots Destroyed (391) 1955 Value Destroyed (19065) 19065 Prototype IDs (27) 540 Alien Tech Used (2) 400 Bonus (889) 889 TOTAL SCORE: 29849 Bonus ------- High Alert Combat Kills 589 Met Zhirov 300 Cogmind --------- Core Integrity 0/1450 Matter 298/300 Energy 100/100 System Corruption 16% Temperature Cool (0) Movement Core (50) Location -2/Research Parts ------- > --- POWER (3) -------- (None) > --- PROPULSION (6) --- (None) > --- UTILITY (11) ----- (None) > --- WEAPON (4) ------- (None) > --- INVENTORY (5) ---- Centrium Medium Armor Plating Improved Thermal Shield Advanced Force Field Nova Cannon Magnetic Acceleration Cannon Peak State ------------ > --- POWER ------------ Particle Reactor Particle Reactor Light Quantum Reactor > --- PROPULSION ------- Improved Heavy Treads Armored Heavy Treads Advanced Heavy Treads > --- UTILITY ---------- Advanced Heat Sink Advanced Heat Sink Advanced Heat Sink Advanced Heat Sink Advanced Heat Sink Advanced Heat Sink High-capacity Storage Unit Energy Well Centrium Medium Armor Plating Centrium Medium Armor Plating Advanced Force Field > --- WEAPON ----------- Matter Neutralizer Nova Cannon Heavy Linear Accelerator > --- INVENTORY -------- Reinforced Fission Core Advanced Medium Treads Heavy Siege Treads High-capacity Storage Unit Particle Accelerator Centrium Medium Armor Plating Improved Thermal Shield Improved Force Field Advanced Force Field Nova Cannon Magnetic Acceleration Cannon Magnetic Acceleration Cannon Linear Accelerator [Rating: 173] Favorites ----------- Power Reinforced Fission Core Engine Improved Ion Engine Power Core Reinforced Fission Core Reactor Particle Reactor Propulsion Armored Treads Treads Armored Treads Leg Aluminum Leg Wheel Armored Huge Wheel Utility Advanced Heat Sink Device Advanced Heat Sink Storage High-capacity Storage Unit Protection Improved Medium Armor Plating Weapon Heavy Plasma Cannon Energy Gun Advanced Beam Rifle Energy Cannon Heavy Plasma Cannon Ballistic Gun Light Assault Rifle Ballistic Cannon Mini Assault Cannon Launcher Rocket Array Build | -11 -10 -10 -10 -9 -8 -7 -6 -5 -5 -5 -5 -4 -4 -3 -2 ------- Run | Jun Mat Min Exi Min Mat Fac Fac Fac Upp Upp Zhi Pro Fac Res Res Slots Evolved 17 | . 1 . . . 4 2 2 2 . . . . 2 2 2 Power 2 | . . . . . 1 . . . . . . . . 1 . Propulsion 4 | . . . . . 1 1 . . . . . . 1 . 1 Utility 9 | . 1 . . . 2 1 2 1 . . . . 1 1 . Weapon 2 | . . . . . . . . 1 . . . . . . 1 Parts Attached 240 | 7 7 1 . . 23 44 27 22 8 7 8 10 19 36 21 Power 35 | 1 1 . . . 3 8 6 2 . 1 2 . 2 3 6 Engine 13 | 1 1 . . . 3 1 6 . . . 1 . . . . Core 12 | . . . . . . 7 . 2 . . . . 1 1 1 Reactor 10 | . . . . . . . . . . 1 1 . 1 2 5 Propulsion 45 | 2 3 . . . 11 10 3 . 4 1 . 2 4 2 3 Treads 28 | 2 1 . . . 9 . . . 4 1 . 2 4 2 3 Leg 2 | . . . . . 2 . . . . . . . . . . Wheel 15 | . 2 . . . . 10 3 . . . . . . . . Hover . | . . . . . . . . . . . . . . . . Flight . | . . . . . . . . . . . . . . . . Utility 115 | 2 2 1 . . 7 14 15 15 3 5 6 3 5 29 8 Device 72 | . . . . . 1 7 13 8 1 4 2 3 3 24 6 Storage 11 | 1 1 . . . 1 1 . 1 . . 3 . 2 . 1 Processor . | . . . . . . . . . . . . . . . . Hackware . | . . . . . . . . . . . . . . . . Protection 32 | 1 1 1 . . 5 6 2 6 2 1 1 . . 5 1 Artifact . | . . . . . . . . . . . . . . . . Weapon 45 | 2 1 . . . 2 12 3 5 1 . . 5 8 2 4 Energy Gun 7 | . . . . . 1 4 . . . . . 1 1 . . Energy Cannon 16 | . . . . . . 2 3 4 1 . . 2 2 1 1 Ballistic Gun 6 | 2 1 . . . 1 2 . . . . . . . . . Ballistic Cannon 15 | . . . . . . 4 . 1 . . . 1 5 1 3 Launcher 1 | . . . . . . . . . . . . 1 . . . Special Weapon . | . . . . . . . . . . . . . . . . Impact Weapon . | . . . . . . . . . . . . . . . . Slashing Weapon . | . . . . . . . . . . . . . . . . Piercing Weapon . | . . . . . . . . . . . . . . . . Special Melee Weapon . | . . . . . . . . . . . . . . . . Unidentified Prototypes 14 | . . . . . 2 2 1 . . . 3 1 . 4 1 Parts Lost 54 | . . . . . 4 2 5 3 5 3 . 2 . 4 26 Power 11 | . . . . . 2 1 . . . . . . . 1 7 Propulsion 8 | . . . . . 2 . . . 1 1 . . . . 4 Utility 30 | . . . . . . 1 5 2 3 2 . 2 . 3 12 Weapon 5 | . . . . . . . . 1 1 . . . . . 3 Highest Loss Streak 14 | . . . . . 4 1 3 1 2 3 . 1 . 1 14 To Critical Strikes 4 | . . . . . . . . . . . . . . . 4 Average Slot Usage (%) 88 | . 79 87 87 87 95 83 84 85 90 98 82 99 89 87 65 Engine 4 | . 12 12 12 12 15 4 11 8 . . . . . . . Core 5 | . . . . . . 9 . 2 11 5 5 5 5 5 3 Reactor 2 | . . . . . . . . . . 4 4 5 5 7 6 Treads 11 | . 11 . . . 24 . . . 12 21 22 21 15 13 9 Wheel 5 | . 12 25 25 25 . 13 11 11 4 . . . . . . Device 23 | . . . . . 2 18 33 31 29 31 32 32 29 31 20 Storage 8 | . 12 12 12 12 13 12 6 5 5 5 5 5 9 9 7 Protection 10 | . 5 12 12 12 21 10 7 10 11 10 11 11 10 5 6 Energy Gun 1 | . . . . . 7 4 . . . . . . 2 . . Energy Cannon 7 | . . . . . . 2 11 13 11 11 . 10 8 8 5 Ballistic Gun 3 | . 25 25 25 25 8 2 . . . . . . . . . Ballistic Cannon 2 | . . . . . . 3 . 2 5 5 . 4 4 3 4 Naked Turns 34 | . . . . . . . . . . . . . . . 34 Heaviest Build 186 | 18 45 48 48 48 69 99 117 128 135 125 102 121 137 174 186 Greatest Support 205 | 40 40 20 20 20 60 56 56 56 88 88 83 83 172 167 205 Greatest Overweight (x) 13 | 4 2 2 2 2 2 1 2 2 2 2 1 1 1 1 13 Average Overweight (x) 1 | . 1 2 2 2 1 1 1 1 1 1 1 1 . . . Largest Inventory Capacity 20 | 10 20 20 20 20 20 20 20 20 20 20 20 20 20 20 20 Average Capacity 19 | 9 15 20 20 20 20 20 20 20 20 20 20 20 20 20 19 Most Carried 20 | 5 8 7 7 8 20 20 20 20 17 17 20 17 20 20 18 Average Carried 15 | 3 6 7 7 7 13 17 16 16 14 14 17 13 18 19 9 Final Capacity 20 | 10 20 20 20 20 20 20 20 20 20 20 20 20 20 20 5 Final Carried 20 | 4 8 7 7 8 19 19 15 17 13 15 18 15 20 18 5 Class Distribution -------------------- 52% | Scavenger-Tank 35% | Hacker-Mutant 11% | Scavenger-Mutant Dominant Class ---------------- Hacker-Mutant | -10/Materials Hacker-Mutant | -10/Mines Hacker-Mutant | -10/Exiles Hacker-Mutant | -9/Mines Hacker-Mutant | -8/Materials Hacker-Mutant | -7/Factory Scavenger-Mutant | -6/Factory Scavenger-Tank | -5/Factory Scavenger-Tank | -5/Upper Caves Scavenger-Tank | -5/Upper Caves Scavenger-Mutant | -5/Zhirov Scavenger-Tank | -4/Proximity Caves Scavenger-Tank | -4/Factory Scavenger-Tank | -3/Research Scavenger-Tank | -2/Research Resources | -11 -10 -10 -10 -9 -8 -7 -6 -5 -5 -5 -5 -4 -4 -3 -2 ----------- Run | Jun Mat Min Exi Min Mat Fac Fac Fac Upp Upp Zhi Pro Fac Res Res Matter Collected 7630 | 193 220 16 . 22 576 1409 285 312 443 477 . 608 566 1738 765 Remotely . | . . . . . . . . . . . . . . . . Salvage Created 19671 | . 319 53 . 95 1365 2477 2581 1717 737 1369 . 1306 1194 4908 1550 Parts 785 | . 31 4 . 4 91 134 99 75 16 34 . 25 47 161 64 Haulers Intercepted 17 | . 1 . . . 5 4 1 . . . . . 1 4 1 Recyclers Shooed 13 | . 1 . . . 1 . 1 4 . . . . . 5 1 Parts Field Recycled . | . . . . . . . . . . . . . . . . Retrieved Matter . | . . . . . . . . . . . . . . . . Parts Self-Destructed . | . . . . . . . . . . . . . . . . Prevented . | . . . . . . . . . . . . . . . . Kills | -11 -10 -10 -10 -9 -8 -7 -6 -5 -5 -5 -5 -4 -4 -3 -2 ------- Run | Jun Mat Min Exi Min Mat Fac Fac Fac Upp Upp Zhi Pro Fac Res Res Combat Hostiles Destroyed 305 | . 8 1 . 2 22 47 37 21 9 20 . 23 20 68 27 Melee 1 | . . . . . . . . . . . . . . . 1 Guns 50 | . 8 1 . 2 22 15 . . . . . . 2 . . Cannons 211 | . . . . . . 31 29 17 8 17 . 16 16 55 22 AOE 5 | . . . . . . . . 1 . . . 4 . . . Classes Destroyed 20 | . 5 1 . 1 2 3 2 . 2 1 . . 2 1 . Worker 12 | . 1 . . . . 2 3 . . . . . 1 3 2 Builder 21 | . . . . . 1 4 1 6 . . . . 2 4 3 Tunneler 1 | . . 1 . . . . . . . . . . . . . Hauler 17 | . 1 . . . 5 4 1 . . . . . 1 4 1 Recycler 7 | . . . . . . . 1 2 . . . . . 4 . Carrier 1 | . . . . . . . . . . . . . . 1 . Operator 3 | . . . . . . 1 1 1 . . . . . . . Watcher 27 | . 3 . . . 4 6 4 1 . . . . 1 4 4 Swarmer 35 | . 6 . . . 6 . 2 . 2 4 . 2 4 2 7 Grunt 122 | . 2 1 . 1 11 26 22 9 2 8 . 12 1 25 2 Brawler 8 | . . . . 1 . . 2 1 . 2 . 1 . 1 . Duelist 7 | . . . . . . . 1 1 . 1 . 3 . 1 . Protector 3 | . . . . . . . . . . 1 . 1 . 1 . Sentry 35 | . . . . . 5 8 4 2 1 1 . 2 3 7 2 Specialist 5 | . . . . . . . . . . . . . 2 3 . Hunter 37 | . . . . . . 3 2 . 2 . . 2 2 14 12 Programmer 48 | . . . . . . 10 4 8 . 2 . . 7 13 4 Heavy 2 | . . . . . . . . . . . . . 1 1 . Behemoth 1 | . . . . . . . . . 1 . . . . . . Savage 3 | . . . . . . . . . 3 . . . . . . Mutant 2 | . . . . . . . . . 1 1 . . . . . Best Kill Streak 10 | . 7 1 . 2 3 4 10 7 3 7 . 9 3 7 8 Combat Bots Only 9 | . 5 1 . 2 3 3 7 4 3 7 . 9 3 5 4 Max Kills in Single Turn 3 | . 1 1 . 1 1 2 2 3 1 1 . 2 1 2 2 Gunslinging . | . . . . . . . . . . . . . . . . Exploded 2 | . . . . . . . . 1 . . . 2 . . . Melee 1 | . . . . . . . . . . . . . . . 1 Uniques/NPCs Destroyed . | . . . . . . . . . . . . . . . . Combat | -11 -10 -10 -10 -9 -8 -7 -6 -5 -5 -5 -5 -4 -4 -3 -2 -------- Run | Jun Mat Min Exi Min Mat Fac Fac Fac Upp Upp Zhi Pro Fac Res Res Damage Taken 17377 | . 159 37 . 46 585 1726 1988 1055 646 621 . 866 493 2102 7053 Core 2314 | . 36 2 . 9 24 213 150 123 66 64 . 40 40 93 1454 Absorbed by Shields 4821 | . . . . . . . 89 239 229 17 . 307 538 1866 1536 Redirected to Shielding 114 | . . . . . . . . . . . . 83 23 8 . Regen/Repaired (Parts) 756 | . . . . . 35 633 88 . . . . . . . . Core Remaining (%) 85 | 100 . . . 81 95 69 82 . . . . 65 96 92 . Volleys Fired 919 | . 37 3 1 10 86 164 119 55 37 34 . 46 56 192 79 Largest 3 | . 2 2 2 2 2 2 2 3 3 3 . 3 3 3 3 Hottest 301 | . 40 40 40 40 84 122 180 269 236 236 . 282 282 284 301 Shots Fired 2280 | . 73 6 2 20 171 328 238 165 113 107 . 142 167 569 179 Gun 465 | . 73 6 2 20 171 168 . . . . . 5 20 . . Cannon 1812 | . . . . . . 160 238 165 113 107 . 134 147 569 179 Launcher 3 | . . . . . . . . . . . . 3 . . . Special . | . . . . . . . . . . . . . . . . Kinetic 829 | . 73 6 2 20 122 160 . 19 38 37 . 39 59 188 66 Thermal 1385 | . . . . . 49 168 238 91 67 70 . 100 108 381 113 Explosive 3 | . . . . . . . . . . . . 3 . . . Electromagnetic 63 | . . . . . . . . 55 8 . . . . . . Robot Hit Streak 51 | . 24 4 . 18 23 30 23 28 31 45 . 41 25 51 32 Robot Miss Streak 6 | . 2 1 . 1 2 4 3 2 1 1 . 6 2 3 2 Penetration Max 1 | . . . . . . 1 . . . . . . . . . Secondary Targets 3 | . 1 . . . 2 . . . . . . . . . . Max Gunslinging Chain 1 | . 1 . . . 1 . . . . . . . . . . Shots Hit Robots 1692 | . 58 4 . 18 137 267 180 117 75 69 . 105 120 415 127 Core Hits 699 | . 23 5 . 6 66 110 74 46 20 37 . 66 44 151 51 Critical Kills 38 | . . . . . 1 1 5 3 2 3 . 2 2 15 4 Critical Parts Destroyed 2 | . . 1 . . 1 . . . . . . . . . . Critical Strikes 82 | . . 1 . . 6 18 5 3 3 4 . 3 4 25 10 Burn 16 | . . . . . 4 12 . . . . . . . . . Meltdown 37 | . . . . . . 1 5 3 2 3 . 2 2 15 4 Destroy 3 | . . 1 . . 2 . . . . . . . . . . Blast 26 | . . . . . . 5 . . 1 1 . 1 2 10 6 Melee Attacks . | . . . . . . . . . . . . . . . . Impact . | . . . . . . . . . . . . . . . . Slashing . | . . . . . . . . . . . . . . . . Piercing . | . . . . . . . . . . . . . . . . Sneak Attacks . | . . . . . . . . . . . . . . . . Combat Hostiles . | . . . . . . . . . . . . . . . . Follow-up Attacks . | . . . . . . . . . . . . . . . . Damage Inflicted 54450 | . 449 56 . 141 1844 6594 5939 4291 2356 2234 . 4054 3909 16400 6183 Guns 5902 | . 449 40 . 141 1844 2823 . . . . . 141 464 . . Cannons 46917 | . . . . . . 3499 5939 3811 2356 2234 . 3119 3445 16386 6128 Explosions 1546 | . . . . . . 272 . 480 . . . 794 . . . Melee . | . . . . . . . . . . . . . . . . Ramming 85 | . . 16 . . . . . . . . . . . 14 55 Kinetic 14488 | . 449 40 . 141 1064 3191 . 329 496 377 . 571 978 4100 2752 Thermal 37599 | . . . . . 780 3131 5939 3014 1596 1857 . 2689 2931 12286 3376 Explosive 1066 | . . . . . . 272 . . . . . 794 . . . Electromagnetic 1212 | . . . . . . . . 948 264 . . . . . . Impact . | . . . . . . . . . . . . . . . . Slashing . | . . . . . . . . . . . . . . . . Piercing . | . . . . . . . . . . . . . . . . Highest Corruption 16 | . . . . . . 3 5 8 8 8 8 8 2 10 16 Average Corruption 6 | . . . . . . 2 3 2 8 8 8 8 1 5 10 Corruption Purged 5 | . . . . . . . 5 . . . . . . . . Corruption Blocked . | . . . . . . . . . . . . . . . . Effects 425 | . . . . . . 25 10 9 86 103 10 71 8 80 23 Message Errors 108 | . . . . . . 3 3 1 20 27 4 15 4 27 4 Matter Fused 88 | . . . . . . 5 1 2 19 25 1 15 2 14 4 Heat Flow Errors 47 | . . . . . . 6 1 . 16 8 1 8 1 2 4 Energy Discharges 65 | . . . . . . 4 2 3 12 15 1 11 . 13 4 Parts Rejected 3 | . . . . . . 1 . . . . . 1 . . 1 Parts Fused 7 | . . . . . . . . . 2 3 . 2 . . . Data Loss (minor) 56 | . . . . . . 3 1 2 10 14 2 6 . 13 5 Data Loss (major) 21 | . . . . . . 3 2 . 2 4 1 4 1 3 1 Misfires 14 | . . . . . . . . . 4 5 . 5 . . . Alerts 7 | . . . . . . . . 1 . 2 . 3 . 1 . Weapon Failures 9 | . . . . . . . . . 1 . . 1 . 7 . Overload Shots . | . . . . . . . . . . . . . . . . Overflow Damage 1655 | . . . . . . 136 160 271 54 48 . 6 81 552 347 Projectiles 1518 | . . . . . . 123 160 147 54 48 . 6 81 552 347 Explosions 137 | . . . . . . 13 . 124 . . . . . . . Melee . | . . . . . . . . . . . . . . . . Knockbacks 80 | . . . . . . 14 . 3 2 3 . 6 8 30 14 Impact . | . . . . . . . . . . . . . . . . Kinetic 73 | . . . . . . 12 . 3 2 3 . 6 8 29 10 Secondary 7 | . . . . . . 2 . . . . . . . 1 4 Self-Inflicted Damage 130 | . . 8 . . . 95 . 27 . . . . . . . Shots 3 | . . . . . . 2 . 1 . . . . . . . Rammed 9 | . . 3 . . . . . . . . . . . 1 5 Targets Rammed 10 | . . 3 . . . . . . . . . . . 1 6 Kicked . | . . . . . . . . . . . . . . . . Crushed 1 | . . . . . . . . . . . . . . . 1 Highest Temperature 504 | . 31 30 6 19 504 125 24 20 211 164 . 210 156 128 253 Average Temperature 74 | . 10 21 4 8 95 69 13 9 74 43 . 71 98 58 68 Received Heat Transfer 4718 | . 54 27 . 54 396 771 1304 214 135 298 . 216 54 397 798 Effects 8 | . . . . . 8 . . . . . . . . . . Shutdowns 3 | . . . . . 3 . . . . . . . . . . Interference 1 | . . . . . 1 . . . . . . . . . . Damage (minor) 1 | . . . . . 1 . . . . . . . . . . Damage (major) 3 | . . . . . 3 . . . . . . . . . . Siege Activations . | . . . . . . . . . . . . . . . . Robots Corrupted . | . . . . . . . . . . . . . . . . Combat Hostiles . | . . . . . . . . . . . . . . . . Parts Fried 1 | . . . . . . . . 1 . . . . . . . Impact Corruptions 1 | . . . . . . . . . . . . . . . 1 Robots Melted 46 | . . . . . . 1 10 3 3 4 . 3 2 16 4 Combat Hostiles 38 | . . . . . . 1 8 3 1 4 . 3 2 13 3 Parts Melted 121 | . . . . . 3 9 27 13 5 8 . 12 11 30 3 Heat Transferred 49690 | . . . . . 1739 6551 9450 4100 2400 2701 . 4060 3945 11636 3108 Parts Sabotaged . | . . . . . . . . . . . . . . . . Parts Stolen . | . . . . . . . . . . . . . . . . Parts Stripped . | . . . . . . . . . . . . . . . . Power Chain Reactions 3 | . . . . . . . . 3 . . . . . . . Missiles Intercepted . | . . . . . . . . . . . . . . . . Alert | -11 -10 -10 -10 -9 -8 -7 -6 -5 -5 -5 -5 -4 -4 -3 -2 ------- Run | Jun Mat Min Exi Min Mat Fac Fac Fac Upp Upp Zhi Pro Fac Res Res Peak Influence 662 | . 201 60 . 65 208 418 497 438 . . . . 267 522 662 Initial 167 | . . 15 . . 17 30 . . . . . . 60 2 167 Average 133 | . 43 30 . 22 57 109 184 156 . . . . 126 177 388 Maximum Alert Level 2 | . 1 . . . 1 2 2 2 . . . . 1 2 2 Low Security (%) 75 | 100 96 100 . 100 96 84 60 70 . . . . 71 60 21 Level 1 17 | . 3 . . . 3 15 24 19 . . . . 28 30 31 Level 2 6 | . . . . . . . 14 10 . . . . . 9 47 Level 3 . | . . . . . . . . . . . . . . . . Level 4 . | . . . . . . . . . . . . . . . . Level 5 . | . . . . . . . . . . . . . . . . High Security . | . . . . . . . . . . . . . . . . Max Security . | . . . . . . . . . . . . . . . . Squads Dispatched 86 | . . . . . 3 28 13 8 . 1 . 1 6 21 5 Investigation 9 | . . . . . 1 5 1 1 . . . . . 1 . Extermination 27 | . . . . . . 10 5 3 . . . . 2 5 2 Reinforcement 22 | . . . . . 1 4 3 1 . . . . 3 8 2 Assault 4 | . . . . . . . . . . 1 . 1 . 1 1 Garrison 24 | . . . . . 1 9 4 3 . . . . 1 6 . Intercept . | . . . . . . . . . . . . . . . . Searches Triggered . | . . . . . . . . . . . . . . . . Construction Impeded 6 | . . . . . . . 1 1 . . . . . 3 1 Haulers Reinforced 7 | . . . . . . 2 1 . . . . . 1 3 . Active Scanning Responses . | . . . . . . . . . . . . . . . . Cargo Convoy Interrupts 1 | . . . . . . . . . . . . . . 1 . Stealth | -11 -10 -10 -10 -9 -8 -7 -6 -5 -5 -5 -5 -4 -4 -3 -2 --------- Run | Jun Mat Min Exi Min Mat Fac Fac Fac Upp Upp Zhi Pro Fac Res Res Distress Signals 12 | . . . . . . 2 2 1 . . . . 2 2 3 Communications Jammed . | . . . . . . . . . . . . . . . . Distress Signals . | . . . . . . . . . . . . . . . . Times Spotted 424 | . 13 1 . 4 33 58 48 27 10 21 . 35 29 87 58 Peak Tracking Total 13 | . 5 1 . 2 4 5 7 4 3 7 . 13 4 6 13 Tactical Retreats 16 | . 1 . . . . 1 . 2 1 . . 2 3 3 3 Traps | -11 -10 -10 -10 -9 -8 -7 -6 -5 -5 -5 -5 -4 -4 -3 -2 ------- Run | Jun Mat Min Exi Min Mat Fac Fac Fac Upp Upp Zhi Pro Fac Res Res Traps Triggered 15 | . 4 . . . 2 1 2 5 . . . . 1 . . Indirectly . | . . . . . . . . . . . . . . . . Trap Hack Attempts . | . . . . . . . . . . . . . . . . Triggered . | . . . . . . . . . . . . . . . . Disarmed . | . . . . . . . . . . . . . . . . Reprogrammed . | . . . . . . . . . . . . . . . . Reused . | . . . . . . . . . . . . . . . . Traps Extracted . | . . . . . . . . . . . . . . . . Installed . | . . . . . . . . . . . . . . . . Triggered 2 | . . 1 . . . . . . 1 . . . . . . Machines | -11 -10 -10 -10 -9 -8 -7 -6 -5 -5 -5 -5 -4 -4 -3 -2 ---------- Run | Jun Mat Min Exi Min Mat Fac Fac Fac Upp Upp Zhi Pro Fac Res Res Machines Disabled 43 | . . . . . 4 27 3 1 . 1 . 1 1 3 2 Max in Single Turn 7 | . . . . . 1 7 1 1 . 1 . 1 1 1 1 Machines Repaired . | . . . . . . . . . . . . . . . . Machines Sabotaged . | . . . . . . . . . . . . . . . . Overloaded Fab Kills . | . . . . . . . . . . . . . . . . Hacking | -11 -10 -10 -10 -9 -8 -7 -6 -5 -5 -5 -5 -4 -4 -3 -2 --------- Run | Jun Mat Min Exi Min Mat Fac Fac Fac Upp Upp Zhi Pro Fac Res Res Machines Accessed 27 | . 1 1 3 . 2 7 1 2 . . 9 . . 1 . Terminals 4 | . 1 1 . . . . . 2 . . . . . . . Fabricators 1 | . . . . . . 1 . . . . . . . . . Repair Stations 8 | . . . . . 1 5 1 . . . . . . 1 . Recycling Units . | . . . . . . . . . . . . . . . . Scanalyzers 2 | . . . . . 1 1 . . . . . . . . . Garrison Access . | . . . . . . . . . . . . . . . . Total Hacks 142 | . 5 1 40 . 6 32 3 4 . . 48 . . 3 . Successful 125 | . 2 1 40 . 5 24 3 1 . . 48 . . 1 . Failed 17 | . 3 . . . 1 8 . 3 . . . . . 2 . Catastrophic 1 | . 1 . . . . . . . . . . . . . . Database Lockouts . | . . . . . . . . . . . . . . . . Manual 2 | . . . . . . . . 2 . . . . . . . Terminals 10 | . 5 1 . . . . . 4 . . . . . . . Fabricators 3 | . . . . . . 3 . . . . . . . . . Repair Stations 36 | . . . . . 3 27 3 . . . . . . 3 . Recycling Units . | . . . . . . . . . . . . . . . . Scanalyzers 5 | . . . . . 3 2 . . . . . . . . . Garrison Access . | . . . . . . . . . . . . . . . . Terminal Hacks 92 | . 2 1 40 . . . . 1 . . 48 . . . . Record 79 | . 2 . 40 . . . . 1 . . 36 . . . . Part Schematic 4 | . . . . . . . . . . . 4 . . . . Robot Analysis 4 | . . . . . . . . . . . 4 . . . . Prototype ID Bank 4 | . . . . . . . . . . . 4 . . . . Dispatch Records 1 | . . 1 . . . . . . . . . . . . . Fabricator Hacks 1 | . . . . . . 1 . . . . . . . . . Network Status 1 | . . . . . . 1 . . . . . . . . . Repair Station Hacks 27 | . . . . . 2 21 3 . . . . . . 1 . Scan Component 16 | . . . . . 1 12 2 . . . . . . 1 . Repair 11 | . . . . . 1 9 1 . . . . . . . . Recycling Unit Hacks . | . . . . . . . . . . . . . . . . Scanalyzer 5 | . . . . . 3 2 . . . . . . . . . Insert Component 5 | . . . . . 3 2 . . . . . . . . . Garrison Access Hacks . | . . . . . . . . . . . . . . . . Unauthorized Hacks . | . . . . . . . . . . . . . . . . Terminals . | . . . . . . . . . . . . . . . . Fabricators . | . . . . . . . . . . . . . . . . Repair Stations . | . . . . . . . . . . . . . . . . Recycling Units . | . . . . . . . . . . . . . . . . Scanalyzers . | . . . . . . . . . . . . . . . . Garrison Access . | . . . . . . . . . . . . . . . . Data Cores Recovered 1 | . . . . . . . . 1 . . . . . . . Used . | . . . . . . . . . . . . . . . . Hacking Detections 14 | . 1 1 . . 2 7 1 1 . . . . . 1 . Full Trace Events 9 | . . . . . 1 5 1 1 . . . . . 1 . Feedback Events . | . . . . . . . . . . . . . . . . Feedback Blocked . | . . . . . . . . . . . . . . . . Robot Schematics Acquired . | . . . . . . . . . . . . . . . . Robots Built . | . . . . . . . . . . . . . . . . Authchips . | . . . . . . . . . . . . . . . . Time . | . . . . . . . . . . . . . . . . Total Robot Build Rating . | . . . . . . . . . . . . . . . . Part Schematics Acquired 4 | . . . . . . . . . . . 4 . . . . Parts Built . | . . . . . . . . . . . . . . . . Authchips . | . . . . . . . . . . . . . . . . Time . | . . . . . . . . . . . . . . . . Total Part Build Rating . | . . . . . . . . . . . . . . . . Parts Repaired 11 | . . . . . 1 9 1 . . . . . . . . Time 416 | . . . . . 13 359 44 . . . . . . . . Parts Recycled . | . . . . . . . . . . . . . . . . Recycled Matter . | . . . . . . . . . . . . . . . . Retrieved Matter . | . . . . . . . . . . . . . . . . Retrieved Components . | . . . . . . . . . . . . . . . . Parts Scanalyzed . | . . . . . . . . . . . . . . . . Part Schematics Acquired . | . . . . . . . . . . . . . . . . Parts Damaged . | . . . . . . . . . . . . . . . . Bothacking | -11 -10 -10 -10 -9 -8 -7 -6 -5 -5 -5 -5 -4 -4 -3 -2 ------------ Run | Jun Mat Min Exi Min Mat Fac Fac Fac Upp Upp Zhi Pro Fac Res Res Used RIF Installer . | . . . . . . . . . . . . . . . . Robots Hacked . | . . . . . . . . . . . . . . . . Non-combat . | . . . . . . . . . . . . . . . . Combat . | . . . . . . . . . . . . . . . . Robot Hacks Applied . | . . . . . . . . . . . . . . . . Relay Couplers Released 4 | . . . . . . . . 4 . . . . . . . Programmers 4 | . . . . . . . . 4 . . . . . . . Fabnet Peak Effective % . | . . . . . . . . . . . . . . . . Robots Rewired . | . . . . . . . . . . . . . . . . Allies Hacked . | . . . . . . . . . . . . . . . . Hacks Repelled . | . . . . . . . . . . . . . . . . Allies | -11 -10 -10 -10 -9 -8 -7 -6 -5 -5 -5 -5 -4 -4 -3 -2 -------- Run | Jun Mat Min Exi Min Mat Fac Fac Fac Upp Upp Zhi Pro Fac Res Res Total Allies . | . . . . . . . . . . . . . . . . Largest Group . | . . . . . . . . . . . . . . . . Highest-Rated Group . | . . . . . . . . . . . . . . . . Highest-Rated Ally . | . . . . . . . . . . . . . . . . Total Orders . | . . . . . . . . . . . . . . . . Ally Attacks . | . . . . . . . . . . . . . . . . Total Damage . | . . . . . . . . . . . . . . . . Kills . | . . . . . . . . . . . . . . . . Allies Corrupted . | . . . . . . . . . . . . . . . . Allies Melted . | . . . . . . . . . . . . . . . . Intel | -11 -10 -10 -10 -9 -8 -7 -6 -5 -5 -5 -5 -4 -4 -3 -2 ------- Run | Jun Mat Min Exi Min Mat Fac Fac Fac Upp Upp Zhi Pro Fac Res Res Robot Analysis Total 4 | . . . . . . . . . . . 4 . . . . Derelict Logs Recovered 5 | . . 1 . . . . . . 1 2 . 1 . . . Drone Launches . | . . . . . . . . . . . . . . . . Drone Recoveries . | . . . . . . . . . . . . . . . . Exploration | -11 -10 -10 -10 -9 -8 -7 -6 -5 -5 -5 -5 -4 -4 -3 -2 ------------- Run | Jun Mat Min Exi Min Mat Fac Fac Fac Upp Upp Zhi Pro Fac Res Res Turns Passed 26105 | 113 790 698 647 140 2745 4090 2319 1087 2609 3363 397 1941 1313 2960 893 Spaces Moved 11792 | 61 507 624 585 103 996 2237 763 605 1255 1263 154 711 601 1028 299 Core 44 | 25 . . . . . . . . . . . . . . 19 Treads 5814 | 36 187 . . . 966 . . . 588 1263 154 711 601 1028 280 Legs . | . . . . . . . . . . . . . . . . Wheels 5934 | . 320 624 585 103 30 2237 763 605 667 . . . . . . Hover . | . . . . . . . . . . . . . . . . Flight . | . . . . . . . . . . . . . . . . Fastest Speed 50 | 50 110 110 110 110 110 101 115 115 130 247 247 247 170 161 50 Average Speed 172 | 157 129 110 110 110 234 114 117 127 193 253 247 247 174 209 182 Slowest Speed 700 | 250 320 110 110 110 243 115 130 130 330 330 247 247 247 256 700 Overloaded Moves . | . . . . . . . . . . . . . . . . Propulsion Burnouts . | . . . . . . . . . . . . . . . . Robots Hopped . | . . . . . . . . . . . . . . . . Cave-ins Triggered 4 | . . . . . . . . . . . . . . . 4 Teleports 1 | . . . . . . . . . . . . 1 . . . Exploration Rate (%) 55 | 4 88 97 92 35 63 62 21 19 96 98 62 76 22 30 17 Regions Visited 15 Branch Regions 7 Pre-discovered Areas 6 | . . 1 1 . . . . . . 1 3 . . . . Known Exits Taken 15 | 1 1 1 1 1 1 1 1 1 1 1 1 1 1 1 . Unknown Exits Taken . | . . . . . . . . . . . . . . . . Scrap Searched 10 | . . . . . . . . . 3 4 . 3 . . . Spaces Dug 39 | . . . . . . . 5 3 11 . . . . 11 9 Terrain Destroyed 384 | . . . . . . 76 28 23 29 19 . 61 20 87 41 Melee . | . . . . . . . . . . . . . . . . Projectile 271 | . . . . . . 7 28 16 29 19 . 24 20 87 41 AOE 113 | . . . . . . 69 . 7 . . . 37 . . . Terrain Rammed . | . . . . . . . . . . . . . . . . Walls Destroyed . | . . . . . . . . . . . . . . . . Machines Disabled . | . . . . . . . . . . . . . . . . Actions | -11 -10 -10 -10 -9 -8 -7 -6 -5 -5 -5 -5 -4 -4 -3 -2 --------- Run | Jun Mat Min Exi Min Mat Fac Fac Fac Upp Upp Zhi Pro Fac Res Res Total 15720 | 78 580 630 587 113 1253 3443 1950 793 1348 1344 171 789 743 1414 484 Wait 2406 | . 21 . . . 97 912 1005 88 46 32 . 16 31 97 61 Move 11776 | 60 506 623 584 102 995 2236 762 604 1254 1262 153 710 600 1027 298 Hop . | . . . . . . . . . . . . . . . . Pick Up 212 | 11 9 . . 1 35 48 20 19 1 8 4 5 20 26 5 Fast Attach 14 | . . . . . . . 3 2 . . . . . 9 . Attach 156 | 7 5 1 . . 14 27 17 15 7 4 3 8 12 16 20 Detach 20 | . . . . . . 3 . 1 1 . 3 . 1 2 9 Swap 72 | . 2 . . . 9 17 7 5 1 3 6 3 7 11 1 Drop 131 | . . . . . 17 36 17 4 . 1 2 1 16 33 4 Fire 919 | . 37 3 1 10 86 164 119 55 37 34 . 46 56 192 79 Melee . | . . . . . . . . . . . . . . . . Ram 4 | . . 3 . . . . . . . . . . . . 1 Kick . | . . . . . . . . . . . . . . . . Crush 6 | . . . . . . . . . . . . . . 1 5 Escape Stasis 1 | . . . . . . . . . . . . . . . 1 Rewire 3 | . . . 2 . . . . . 1 . . . . . . Trap . | . . . . . . . . . . . . . . . . Miscellaneous . | . . . . . . . . . . . . . . . . Route ------- -11/Junkyard -10/Materials (discovered 3 exits: *Mat x2 / *Min) -10/Mines (discovered 3 exits: *Mat x2 / *Exi) -10/Exiles (discovered 2 exits: *Min x2) -9/Mines -8/Materials (discovered 3 exits: *Fac x3) -7/Factory (discovered 3 exits: *Fac x2 / *Low) -6/Factory -5/Factory -5/Upper Caves -5/Upper Caves (discovered 2 exits: *Fac / *Zhi) -5/Zhirov -4/Proximity Caves -4/Factory -3/Research -2/Research (discovered 1 exit: *Acc) History --------- Turn | Location | Event 2 | -11/Junkyard | Met Revision 17 4 | -11/Junkyard | Identified exit to Materials 4 | -11/Junkyard | Discovered exit to Materials (range 13) 114 | -11/Junkyard | Entered Materials 114 | -10/Materials | Evolved 1 slot: Utility x1 294 | -10/Materials | Identified exit to Mines 294 | -10/Materials | Discovered exit to Mines (range 16) 318 | -10/Materials | Build established: Hacker-Mutant 575 | -10/Materials | Identified exit to Materials 575 | -10/Materials | Discovered exit to Materials (range 13) 838 | -10/Materials | Discovered exit to Materials (range 16) 904 | -10/Materials | Entered Mines 947 | -10/Mines | Discovered exit to Materials (range 8) 1153 | -10/Mines | Discovered exit to Materials (range 9) 1164 | -10/Mines | Learned location of Storage (-7) 1215 | -10/Mines | Learned Materials stockpile data 1597 | -10/Mines | Deemed a non-threat by the Exiles lab entrance 1597 | -10/Mines | Identified exit to Exiles 1597 | -10/Mines | Discovered exit to Exiles (range 5) 1602 | -10/Mines | Entered Exiles 1630 | -10/Exiles | Met 8R-AWN 1648 | -10/Exiles | Met EX-HEX 1710 | -10/Exiles | Met EX-DEC 1750 | -10/Exiles | Learned location of Zion (-7) 1809 | -10/Exiles | Identified exit to Mines 1809 | -10/Exiles | Discovered exit to Mines (range 12) 1901 | -10/Exiles | Visited The Gauntlet 2082 | -10/Exiles | Met EX-BIN 2234 | -10/Exiles | Discovered exit to Mines (range 14) 2249 | -10/Exiles | Entered Mines 2379 | -9/Mines | Identified exit to Materials 2379 | -9/Mines | Discovered exit to Materials (range 9) 2389 | -9/Mines | Entered Materials 2389 | -8/Materials | Evolved 4 slots: Power x1, Propulsion x1, Utility x2 2505 | -8/Materials | Lost 4 parts (2p2n) 2744 | -8/Materials | Identified exit to Factory 2744 | -8/Materials | Discovered exit to Factory (range 15) 3069 | -8/Materials | Discovered exit to Factory (range 16) 3265 | -8/Materials | Garrison activated, responded to threat 3485 | -8/Materials | Discovered exit to Factory (range 10) 4524 | -8/Materials | Build established: Scavenger-Mutant 4899 | -8/Materials | Repaired Lgt. Armor Plating 5134 | -8/Materials | Entered Factory 5134 | -7/Factory | Evolved 2 slots: Propulsion x1, Utility x1 5442 | -7/Factory | Build established: Hacker-Mutant 5603 | -7/Factory | Identified exit to Factory 5603 | -7/Factory | Discovered exit to Factory (range 6) 6035 | -7/Factory | Found Prototype Launcher 6058 | -7/Factory | Identified Rocket Array 6328 | -7/Factory | Repaired Arm. Huge Wheel 6369 | -7/Factory | Repaired Com. Matter Pod 6406 | -7/Factory | Garrison activated, responded to threat 6791 | -7/Factory | Identified exit to Lower Caves 6791 | -7/Factory | Discovered exit to Lower Caves (range 5) 7037 | -7/Factory | Repaired Arm. Huge Wheel 7077 | -7/Factory | Repaired Cryofiber Web 7123 | -7/Factory | Repaired Arm. Huge Wheel 7429 | -7/Factory | Repaired Nuclear Core 8152 | -7/Factory | Garrison activated, responded to threat 8286 | -7/Factory | Discovered exit to Factory (range 15) 8762 | -7/Factory | Repaired Arm. Huge Wheel 8814 | -7/Factory | Repaired Adv. Heat Sink 8854 | -7/Factory | Repaired Cryofiber Web 9224 | -7/Factory | Entered another Factory area 9224 | -6/Factory | Evolved 2 slots: Utility x2 9682 | -6/Factory | Garrison activated, responded to threat 9926 | -6/Factory | Garrison activated, responded to threat 9959 | -6/Factory | Destroyed 7 combat bots 9959 | -6/Factory | Lost 3 parts (3u) 10042 | -6/Factory | Repaired Imp. Medium Armor Plating 10235 | -6/Factory | Build established: Scavenger-Mutant 10422 | -6/Factory | Identified exit to Factory 10422 | -6/Factory | Discovered exit to Factory (range 14) 11543 | -6/Factory | Entered another Factory area 11543 | -5/Factory | Evolved 2 slots: Utility x1, Weapon x1 11593 | -5/Factory | Spotted B-75 Beast 11984 | -5/Factory | Build established: Scavenger-Tank 12189 | -5/Factory | Garrison activated, responded to threat 12468 | -5/Factory | Identified exit to Upper Caves 12468 | -5/Factory | Discovered exit to Upper Caves (range 16) 12630 | -5/Factory | Entered Upper Caves 12684 | -5/Upper Caves | Attracted the attention of an 0b10 checkpoint 13119 | -5/Upper Caves | Learned 4 Factory zone layouts 13150 | -5/Upper Caves | Spotted B-75 Beast 13638 | -5/Upper Caves | Destroyed B-75 Beast 14185 | -5/Upper Caves | Identified exit to Upper Caves 14185 | -5/Upper Caves | Discovered exit to Upper Caves (range 14) 14536 | -5/Upper Caves | Attacked by a delusional Derelict stockpiling Unaware 15239 | -5/Upper Caves | Entered another Upper Caves area 15281 | -5/Upper Caves | Identified exit to Factory 15281 | -5/Upper Caves | Discovered exit to Factory (range 6) 15431 | -5/Upper Caves | Encountered a Warlord checkpoint 15733 | -5/Upper Caves | Attracted the attention of an 0b10 outpost 15786 | -5/Upper Caves | Destroyed 7 combat bots 15857 | -5/Upper Caves | Lost 3 parts (1n2u) 15868 | -5/Upper Caves | Destroyed 7 combat bots 16098 | -5/Upper Caves | Learned Factory terminal intel 16395 | -5/Upper Caves | Identified exit to Zhirov 16395 | -5/Upper Caves | Discovered exit to Zhirov (range 7) 18602 | -5/Upper Caves | Entered Zhirov 18604 | -5/Zhirov | Identified exit to Proximity Caves 18604 | -5/Zhirov | Discovered exit to Proximity Caves (range 3) 18648 | -5/Zhirov | Met Zhirov 18715 | -5/Zhirov | Found Alien Artifact 18827 | -5/Zhirov | Found Alien Artifact 18828 | -5/Zhirov | Identified Integrated Dissipator 18828 | -5/Zhirov | Installed Integrated Dissipator, increased core heat dissipation (+20) 18908 | -5/Zhirov | Build established: Scavenger-Mutant 18908 | -5/Zhirov | Learned location of Quarantine (-3) 18908 | -5/Zhirov | Learned location of Testing (-2) 18908 | -5/Zhirov | Learned location of Command (-1) 18932 | -5/Zhirov | Zhirov requested help retrieving the SGEMP Prototype 18999 | -5/Zhirov | Entered Proximity Caves 19288 | -4/Proximity Caves | Build established: Scavenger-Tank 19322 | -4/Proximity Caves | Attracted the attention of an 0b10 outpost 19342 | -4/Proximity Caves | Identified Transdimensional Reconstructor 19342 | -4/Proximity Caves | Warped through subspace 20260 | -4/Proximity Caves | Learned Research trap positions 20394 | -4/Proximity Caves | Destroyed 9 combat bots 20726 | -4/Proximity Caves | Discovered exit to Factory (range 15) 20940 | -4/Proximity Caves | Entered Factory 20940 | -4/Factory | Evolved 2 slots: Propulsion x1, Utility x1 20942 | -4/Factory | Loaded intel: 26 terminal locations 21025 | -4/Factory | Garrison activated, responded to threat 21982 | -4/Factory | Identified exit to Research 21982 | -4/Factory | Discovered exit to Research (range 13) 22253 | -4/Factory | Entered Research 22253 | -3/Research | Evolved 2 slots: Power x1, Utility x1 22254 | -3/Research | Loaded intel: 94 trap records 23045 | -3/Research | Cargo convoy interrupted 23259 | -3/Research | Garrison activated, responded to threat 24764 | -3/Research | Garrison activated, responded to threat 24829 | -3/Research | Identified exit to Research 24829 | -3/Research | Discovered exit to Research (range 3) 24935 | -3/Research | Found Prototype Device 24986 | -3/Research | Identified Active Sensor Suite 25049 | -3/Research | First assault squad dispatched 25076 | -3/Research | System corruption reached 10% 25213 | -3/Research | Entered another Research area 25213 | -2/Research | Evolved 2 slots: Propulsion x1, Weapon x1 25714 | -2/Research | Spotted B-90 Cyclops 25764 | -2/Research | Lost 5 parts (1p2u2w) 25805 | -2/Research | Crushed by falling debris 25825 | -2/Research | Crushed by falling debris 25825 | -2/Research | System corruption reached 10% 25843 | -2/Research | Crushed by falling debris 25852 | -2/Research | Crushed by falling debris 25894 | -2/Research | Lost 14 parts (2p3n8u1w) 25963 | -2/Research | First assault squad dispatched 26049 | -2/Research | Identified exit to Access 26049 | -2/Research | Discovered exit to Access (range 15) 26075 | -2/Research | Core integrity fell below 50% 26081 | -2/Research | Lost 5 parts (3p1n1u) 26097 | -2/Research | Core integrity fell below 20% 26106 | -2/Research | Destroyed by G-73 Enforcer with Phase Gun Last Messages --------------- 26042_ U-05 Engineer destroyed. 26042_ Critical hit (Burn: +37). 26044_ Rnf. Fission Core destroyed. 26048_ Acquired 23 matter. 26049_ EXIT=FOUND: ACCESS 26050_ Adv. Gravity Neutralizer destroyed. 26053_ BSRF%<7M|LGU&##VRFLOE2706MUB>IEYL|HK 26072_ System corrupted: Energy discharge (-32). 26072_ Dropped Hcp. Storage Unit. 26072_ Slammed into G-73 Enforcer. 26074_ Critical hit (Burn: +37). 26077_ R-10 Processor collects Hcp. Storage Unit. 26078_ R-10 Processor collects Linear Accelerator. 26078_ R-10 Processor collects Magnetic Acceleration Cannon. 26087_ System corrupted: Heat flow error (+235). 26102_ System corrupted: Heat flow error (+125). [Achievement: 20k Club] [Achievement: This Is Interesting...] [Achievement: Torch] [Achievement: Achiever] Map ----- +----------------------------------------------------+ | ?????????????????????????????????????????????????? | | ?????????????????????????????????????????????????? | | ?????????????????????????????????????????????????? | | ?????????????????????????????????????????????????? | | ?????????????????????????????????????????????????? | | ?????????????????????????????????????????????????? | | ?????????????????????????????????????????????????? | | ?????????????????????????????????????????????????? | | ??????????????????????????????????? ???????????? | | ???????????????????????????????????